fUSD/lending_fUSD_20260216
["ID","MTS","AMOUNT","RATE_DAILY","PERIOD"]
[405764801,1771285843790,-500.0,0.00014807,2]
[405764802,1771285843810,-150.0,0.00014807,2]
[405764803,1771285843821,-500.0,0.00014807,2]
[405764804,1771285843831,-500.0,0.00014807,2]
[405764805,1771285843842,-500.0,0.00014807,2]
[405764806,1771285843852,-500.0,0.00014807,2]
[405764807,1771285843862,-500.0,0.00014807,2]
[405764808,1771285843871,-500.0,0.00014807,2]
[405764809,1771285843881,-500.0,0.00014807,2]
[405764810,1771285843891,-500.0,0.00014807,2]
[405764811,1771285843901,-500.0,0.00014807,2]
[405764812,1771285843911,-575.0,0.00014807,2]
[405764813,1771285843921,-150.0,0.00014807,2]
[405764814,1771285843930,-500.0,0.00014807,2]
[405764815,1771285843941,-150.0,0.00014862,2]
[405764816,1771285843951,-500.0,0.00014862,2]
[405764817,1771285843962,-500.0,0.00014862,2]
[405764818,1771285843971,-243.9850094,0.00014862,2]
[405764819,1771285843981,-150.0,0.00014862,2]
[405764820,1771285843991,-150.0,0.00014862,2]
[405764821,1771285844000,-150.0,0.00014862,2]
[405764822,1771285844010,-500.0,0.00014862,2]
[405764823,1771285844020,-205.05348313,0.00014862,2]
[405764824,1771285844030,-648.83969409,0.00014862,2]
[405764825,1771285844040,-500.0,0.00014862,2]
[405764826,1771285844049,-500.0,0.00014862,2]
[405764827,1771285844059,-500.0,0.00014862,2]
[405764828,1771285844069,-500.0,0.00014862,2]
[405764829,1771285844079,-502.30791208,0.00014862,2]
[405764830,1771285844089,-500.0,0.00014862,2]
[405764831,1771285844099,-500.0,0.00014862,2]
[405764832,1771285844108,-500.0,0.00014862,2]
[405764833,1771285844119,-500.0,0.00014862,2]
[405764834,1771285844129,-575.0,0.00014862,2]
[405764835,1771285844139,-150.0,0.00014862,2]
[405764836,1771285844150,-500.0,0.00014862,2]
[405764837,1771285844160,-5531.0,0.000149,5]
[405764838,1771285844170,-150.0,0.00014917,2]
[405764839,1771285844181,-150.93589511,0.00014917,2]
[405764840,1771285844192,-500.0,0.00014917,2]
[405764841,1771285844202,-150.0,0.00014917,2]
[405764842,1771285844211,-200.0,0.00014917,2]
[405764843,1771285844220,-200.0,0.00014917,2]
[405764844,1771285844230,-500.0,0.00014917,2]
[405764845,1771285844239,-500.0,0.00014917,2]
[405764846,1771285844249,-500.0,0.00014917,2]
[405764847,1771285844258,-534.16290156,0.00014917,2]
[405764848,1771285844267,-500.0,0.00014917,2]
[405764849,1771285844276,-500.0,0.00014917,2]
[405764850,1771285844286,-500.0,0.00014917,2]
[405764851,1771285844295,-500.0,0.00014917,2]
[405764852,1771285844305,-465.63318921,0.00014917,2]
[405764853,1771285844314,-575.0,0.00014917,2]
[405764854,1771285844323,-150.0,0.00014917,2]
[405764855,1771285844338,-500.0,0.00014917,2]
[405764856,1771285844347,-500.0,0.00014971,2]
[405764857,1771285844358,-200.0,0.00014971,2]
[405764858,1771285844368,-500.0,0.00014971,2]
[405764859,1771285844378,-500.0,0.00014971,2]
[405764860,1771285844387,-500.0,0.00014971,2]
[405764861,1771285844397,-500.0,0.00014971,2]
[405764862,1771285844408,-500.0,0.00014971,2]
[405764863,1771285844420,-500.0,0.00014971,2]
[405764864,1771285844431,-500.0,0.00014971,2]
[405764865,1771285844442,-575.0,0.00014971,2]
[405764866,1771285844452,-200.63931179,0.00014971,2]
[405764867,1771285844463,-500.0,0.00014971,2]
[405764868,1771285844474,-250.0,0.00015,2]
[405764869,1771285844483,-156.89962856,0.00015,5]
[405764870,1771285844494,-1000.0,0.00015021,2]
[405764871,1771285844504,-500.0,0.00015021,2]
[405764872,1771285844514,-500.0,0.00015021,2]
[405764873,1771285844524,-1000.0,0.00015021,2]
[405764874,1771285844534,-1000.0,0.00015021,2]
[405764875,1771285844544,-642.27910673,0.00015021,2]
[405764876,1771285844554,-500.0,0.00015026,2]
[405764877,1771285844563,-500.0,0.00015026,2]
[405764878,1771285844573,-500.0,0.00015026,2]
[405764879,1771285844583,-500.0,0.00015026,2]
[405764880,1771285844595,-500.0,0.00015026,2]
[405764881,1771285844605,-500.0,0.00015026,2]
[405764882,1771285844615,-500.0,0.00015026,2]
[405764883,1771285844627,-500.0,0.00015026,2]
[405764884,1771285844637,-575.0,0.00015026,2]
[405764885,1771285844647,-462.8894868,0.00015026,2]
[405764886,1771285844657,-500.0,0.00015081,2]
[405764887,1771285844667,-500.0,0.00015081,2]
[405764888,1771285844677,-500.0,0.00015081,2]
[405764889,1771285844687,-500.0,0.00015081,2]
[405764890,1771285844698,-500.0,0.00015081,2]
[405764891,1771285844709,-500.0,0.00015081,2]
[405764892,1771285844719,-500.0,0.00015081,2]
[405764893,1771285844728,-500.0,0.00015081,2]
[405764894,1771285844738,-575.0,0.00015081,2]
[405764895,1771285844748,-628.19090217,0.00015136,2]
[405764896,1771285844758,-380.19236753,0.00015136,2]
[405764897,1771285844768,-500.0,0.00015136,2]
[405764898,1771285844778,-500.0,0.00015136,2]
[405764899,1771285844787,-500.0,0.00015136,2]
[405764900,1771285844797,-500.0,0.00015136,2]
[405764901,1771285844807,-500.0,0.00015136,2]
[405764902,1771285844817,-500.0,0.00015136,2]
[405764903,1771285844827,-575.0,0.00015136,2]
[405764904,1771285844837,-500.0,0.00015191,2]
[405764905,1771285844847,-500.0,0.00015191,2]
[405764906,1771285844857,-500.0,0.00015191,2]
[405764907,1771285844867,-500.0,0.00015191,2]
[405764908,1771285844877,-500.0,0.00015191,2]
[405764909,1771285844887,-500.0,0.00015191,2]
[405764910,1771285844896,-575.0,0.00015191,2]
[405764911,1771285844906,-261.65460803,0.00015245,2]
[405764912,1771285844916,-500.0,0.00015245,2]
[405764913,1771285844926,-500.0,0.00015245,2]
[405764914,1771285844936,-500.0,0.00015245,2]
[405764915,1771285844947,-500.0,0.00015245,2]
[405764916,1771285844957,-575.0,0.00015245,2]
[405764917,1771285844967,-313.7,0.0001528,2]
[405764918,1771285844978,-150.0,0.000153,2]
[405764919,1771285844988,-500.0,0.000153,2]
[405764920,1771285844997,-500.0,0.000153,2]
[405764921,1771285845007,-500.0,0.000153,2]
[405764922,1771285845017,-575.0,0.000153,2]
[405764923,1771285845026,-500.0,0.00015355,2]
[405764924,1771285845036,-500.0,0.00015355,2]
[405764925,1771285845045,-500.0,0.00015355,2]
[405764926,1771285845055,-575.0,0.00015355,2]
[405764927,1771285845065,-9035.0,0.00015398,2]
[405764928,1771285845077,-2258.0,0.00015398,2]
[405764929,1771285845087,-500.0,0.0001541,2]
[405764930,1771285845098,-210.67755225,0.0001541,2]
[405764931,1771285845107,-500.0,0.0001541,2]
[405764932,1771285845117,-575.0,0.0001541,2]
[405764933,1771285845127,-166.66,0.00015432,2]
[405764934,1771285845136,-500.0,0.00015465,2]
[405764935,1771285845145,-507.52129439,0.00015465,2]
[405764936,1771285845155,-575.0,0.00015465,2]
[405764937,1771285845165,-500.0,0.00015519,2]
[405764938,1771285845175,-575.0,0.00015519,2]
[405764939,1771285845185,-549.59276966,0.00015548,7]
[405764940,1771285845194,-1500.0,0.00015568,2]
[405764941,1771285845204,-1500.0,0.00015568,2]
[405764942,1771285845215,-1500.0,0.00015568,2]
[405764943,1771285845224,-575.0,0.00015574,2]
[405764944,1771285845233,-575.0,0.00015629,2]
[405764945,1771285845243,-575.0,0.00015684,2]
[405764946,1771285845252,-1000.0,0.00015737,2]
[405764947,1771285845261,-575.0,0.00015739,2]
[405764948,1771285845271,-575.0,0.00015793,2]
[405764949,1771285845282,-575.0,0.00015848,2]
[405764950,1771285845292,-160.0,0.00015884,2]
[405764951,1771285845303,-173.53171403,0.00015884,2]
[405764952,1771285845315,-575.0,0.00015903,2]
[405764953,1771285845324,-1349.4,0.00015933,2]
[405764954,1771285845334,-166.66,0.00015942,2]
[405764955,1771285845344,-575.0,0.00015958,2]
[405764956,1771285845354,-5000.0,0.0001596,2]
[405764957,1771285845364,-483.2761196,0.00015986,2]
[405764958,1771285845375,-302.88716653,0.00016,2]
[405764959,1771285845385,-575.0,0.00016012,2]
[405764960,1771285845395,-579.56884041,0.00016067,2]
[405764961,1771285845406,-7905.42,0.00016116,2]
[405764962,1771285845417,-1786.3918722,0.00016116,2]
[405764963,1771285845428,-367.87853935,0.00016116,2]
[405764964,1771285845438,-2000.0,0.00016116,2]
[405764965,1771285845447,-1000.0,0.00016191,2]
[405764966,1771285845457,-1000.0,0.00016191,2]
[405764967,1771285845466,-1000.0,0.00016191,2]
[405764968,1771285845476,-1000.0,0.00016191,2]
[405764969,1771285845485,-1000.0,0.00016191,2]
[405764970,1771285845495,-1000.0,0.00016191,2]
[405764971,1771285845505,-483.2761196,0.00016386,2]
[405764972,1771285845515,-166.66,0.00016451,2]
[405764973,1771285845525,-2500.0,0.00016664,2]
[405764974,1771285845536,-1000.0,0.00016868,2]
[405764975,1771285845546,-12649.0,0.00016938,2]
[405764976,1771285845555,-1410.0,0.00016938,2]
[405764977,1771285845566,-166.66,0.0001696,2]
[405764978,1771285845578,-785.55496612,0.00016999,2]
[405764979,1771285845588,-500.0,0.00017,5]
[405764980,1771285845598,-300.0,0.00017,2]
[405764981,1771285845608,-3000.0,0.00017212,2]
[405764982,1771285845618,-501.0,0.000173,2]
[405764983,1771285845632,-3724.672194,0.00017389,7]
[405764984,1771285845643,-166.66,0.0001747,2]
[405764985,1771285845652,-350.0,0.00017544,2]
[405764986,1771285845663,-1073.12377282,0.0001764,2]
[405764987,1771285845673,-1136.50869388,0.0001764,2]
[405764988,1771285845682,-1038.68676451,0.0001764,2]
[405764989,1771285845691,-1044.01530081,0.0001764,2]
[405764990,1771285845702,-1088.34979888,0.0001764,2]
[405764991,1771285845712,-1047.42590313,0.0001764,2]
[405764992,1771285845722,-1065.35409114,0.0001764,2]
[405764993,1771285845731,-1115.272396,0.0001764,2]
[405764994,1771285845741,-1126.89556144,0.0001764,2]
[405764995,1771285845751,-1068.66966586,0.0001764,2]
[405764996,1771285845760,-350.0,0.0001766,2]
[405764997,1771285845867,-350.0,0.00017702,2]
[405764998,1771285845878,-2818.34,0.00017728,2]
[405764999,1771285845887,-1388.96,0.00017728,2]
[405765000,1771285845897,-29999.99,0.00017728,2]
[405765001,1771285845906,-840.14056473,0.0001776,2]
[405765002,1771285845916,-2619.05879386,0.000178,2]
[405765003,1771285845926,-500.0,0.00017808,2]
[405765004,1771285845937,-500.0,0.00017808,2]
[405765005,1771285845947,-500.0,0.00017808,2]
[405765006,1771285845958,-550.33934066,0.00017808,2]
[405765007,1771285845968,-500.0,0.00017808,2]
[405765008,1771285845978,-500.0,0.00017808,2]
[405765009,1771285845988,-500.0,0.00017808,2]
[405765010,1771285845999,-500.0,0.00017808,2]
[405765011,1771285846009,-500.0,0.00017808,2]
[405765012,1771285846018,-250.0,0.00017808,20]
[405765013,1771285846029,-250.0,0.00017808,20]
[405765014,1771285846040,-250.0,0.00017808,20]
[405765015,1771285846051,-250.0,0.00017808,20]
[405765016,1771285846060,-250.0,0.00017808,20]
[405765017,1771285846072,-250.0,0.00017808,20]
[405765018,1771285846083,-250.0,0.00017808,20]
[405765019,1771285846093,-250.0,0.00017808,20]
[405765020,1771285846104,-250.0,0.00017808,20]
[405765021,1771285846114,-250.0,0.00017808,20]
[405765022,1771285846124,-250.0,0.00017808,20]
[405765023,1771285846135,-250.0,0.00017808,20]
[405765024,1771285846146,-250.0,0.00017808,20]
[405765025,1771285846156,-250.0,0.00017808,20]
[405765026,1771285846165,-250.0,0.00017808,20]
[405765027,1771285846175,-211.316215,0.00017808,20]
[405765028,1771285846186,-800.0,0.00017808,2]
[405765029,1771285846196,-200.0,0.00017855,2]
[405765030,1771285846207,-200.0,0.00017856,2]
[405765031,1771285846217,-200.0,0.00017856,2]
[405765032,1771285846227,-762.82025096,0.00017884,2]
[405765033,1771285846236,-588323.2370617,0.00017894,2]
[405765034,1771285846245,-6350.995335,0.00017894,2]
[405765035,1771285846255,-200.0,0.00017899,5]
[405765036,1771285846264,-200.0,0.00017899,5]
[405765037,1771285846273,-200.0,0.00017899,5]
[405765038,1771285846282,-200.0,0.00017899,5]
[405765039,1771285846292,-200.0,0.00017899,5]
[405765040,1771285846301,-200.0,0.00017899,5]
[405765041,1771285846311,-160.0,0.00017899,5]
[405765042,1771285846320,-5000.0,0.00017899,5]
[405765043,1771285846329,-250.0,0.00017899,5]
[405765044,1771285846339,-500.0,0.00017899,5]
[405765045,1771285846348,-500.0,0.00017899,5]
[405765046,1771285846357,-250.0,0.00017899,5]
[405765047,1771285846366,-3000.0,0.00017899,5]
[405765048,1771285846375,-500.0,0.00017899,5]
[405765049,1771285846384,-250.0,0.00017899,5]
[405765050,1771285846393,-2500.0,0.00017899,5]
[405765051,1771285846403,-500.0,0.00017899,5]
[405765052,1771285846412,-250.0,0.00017899,5]
[405765053,1771285846421,-500.0,0.00017899,5]
[405765054,1771285846430,-250.0,0.00017899,5]
[405765055,1771285846439,-500.0,0.00017899,5]
[405765056,1771285846449,-250.0,0.00017899,5]
[405765057,1771285846458,-500.0,0.00017899,5]
[405765059,1771285846467,-250.0,0.00017899,5]
[405765061,1771285846476,-500.0,0.00017899,5]
[405765062,1771285846486,-250.0,0.00017899,5]
[405765063,1771285846495,-500.0,0.00017899,5]
[405765064,1771285846504,-250.0,0.00017899,5]
[405765065,1771285846513,-500.0,0.00017899,5]
[405765066,1771285846523,-250.0,0.00017899,5]
[405765067,1771285846532,-151.0,0.00017899,5]
[405765068,1771285846541,-500.0,0.00017899,5]
[405765069,1771285846550,-500.0,0.00017899,5]
[405765070,1771285846559,-250.0,0.00017899,5]
[405765071,1771285846569,-500.0,0.00017899,5]
[405765072,1771285846578,-151.0,0.00017899,5]
[405765073,1771285846588,-500.0,0.00017899,5]
[405765074,1771285846598,-151.0,0.00017899,5]
[405765075,1771285846607,-225.40194183,0.00017899,5]
[405765076,1771285846616,-151.0,0.00017899,5]
[405765077,1771285846628,-151.0,0.00017899,5]
[405765078,1771285846637,-500.0,0.00017899,5]
[405765079,1771285846647,-151.0,0.00017899,5]
[405765080,1771285846657,-500.0,0.00017899,5]
[405765081,1771285846668,-500.0,0.00017899,5]
[405765082,1771285846677,-161.29007541,0.00017899,5]
[405765083,1771285846686,-250.0,0.00017899,5]
[405765084,1771285846697,-500.0,0.00017899,5]
[405765085,1771285846706,-162.380719,0.00017899,5]
[405765086,1771285846716,-151.0,0.00017899,5]
[405765087,1771285846727,-500.0,0.00017899,5]
[405765088,1771285846736,-168.3888056,0.00017899,5]
[405765089,1771285846746,-250.0,0.00017899,5]
[405765090,1771285846755,-151.0,0.00017899,5]
[405765091,1771285846766,-500.0,0.00017899,5]
[405765092,1771285846775,-250.0,0.00017899,5]
[405765093,1771285846785,-151.0,0.00017899,5]
[405765094,1771285846795,-163.83612636,0.00017899,5]
[405765095,1771285846804,-500.0,0.00017899,5]
[405765096,1771285846814,-250.0,0.00017899,5]
[405765097,1771285846823,-151.0,0.00017899,5]
[405765098,1771285846833,-500.0,0.00017899,5]
[405765099,1771285846844,-250.0,0.00017899,5]
[405765100,1771285846853,-500.0,0.00017899,5]
[405765101,1771285846862,-151.0,0.00017899,5]
[405765102,1771285846872,-250.0,0.00017899,5]
[405765103,1771285846881,-500.0,0.00017899,5]
[405765104,1771285846891,-500.0,0.00017899,5]
[405765105,1771285846900,-151.0,0.00017899,5]
[405765106,1771285846910,-274.77866513,0.00017899,5]
[405765107,1771285846920,-500.0,0.00017899,5]
[405765108,1771285846930,-500.0,0.00017899,5]
[405765109,1771285846939,-151.0,0.00017899,5]
[405765110,1771285846949,-500.0,0.00017899,5]
[405765111,1771285846960,-151.0,0.00017899,5]
[405765112,1771285846972,-500.0,0.00017899,5]
[405765113,1771285846983,-151.0,0.00017899,5]
[405765114,1771285846994,-500.0,0.00017899,5]
[405765115,1771285847005,-151.0,0.00017899,5]
[405765116,1771285847015,-500.0,0.00017899,5]
[405765117,1771285847024,-151.0,0.00017899,5]
[405765118,1771285847034,-500.0,0.00017899,5]
[405765119,1771285847045,-500.0,0.00017899,5]
[405765120,1771285847054,-500.0,0.00017899,5]
[405765121,1771285847063,-500.0,0.00017899,5]
[405765122,1771285847072,-500.0,0.00017899,5]
[405765123,1771285847082,-174.61919141,0.00017899,5]
[405765124,1771285847092,-500.0,0.00017899,5]
[405765125,1771285847101,-500.0,0.00017899,5]
[405765126,1771285847109,-500.0,0.00017899,5]
[405765127,1771285847119,-500.0,0.00017899,5]
[405765128,1771285847128,-500.0,0.00017899,5]
[405765129,1771285847137,-500.0,0.00017899,5]
[405765130,1771285847147,-200.0,0.00017899,5]
[405765131,1771285847156,-200.0,0.00017899,5]
[405765132,1771285847165,-200.0,0.00017899,5]
[405765133,1771285847175,-200.0,0.00017899,5]
[405765134,1771285847184,-200.0,0.00017899,5]
[405765135,1771285847194,-200.0,0.00017899,5]
[405765136,1771285847203,-250.0,0.00017899,5]
[405765137,1771285847213,-250.0,0.00017899,5]
[405765138,1771285847222,-721.12765535,0.00017899,5]
[405765139,1771285847231,-250.0,0.00017899,5]
[405765140,1771285847241,-747.8093786,0.00017899,5]
[405765141,1771285847250,-578.20924308,0.00017899,5]
[405765142,1771285847259,-295.61615841,0.00017899,5]
[405765143,1771285847269,-775.47832561,0.00017899,5]
[405765144,1771285847278,-250.0,0.00017899,5]
[405765145,1771285847290,-535.28291957,0.00017899,5]
[405765146,1771285847301,-250.0,0.00017899,5]
[405765147,1771285847311,-804.17102365,0.00017899,5]
[405765148,1771285847320,-464.39520205,0.00017899,5]
[405765149,1771285847331,-250.0,0.00017899,5]
[405765150,1771285847340,-250.0,0.00017899,5]
[405765151,1771285847350,-250.0,0.00017899,5]
[405765152,1771285847359,-250.0,0.00017899,5]
[405765153,1771285847368,-250.0,0.00017899,5]
[405765154,1771285847378,-250.0,0.00017899,5]
[405765155,1771285847386,-250.0,0.00017899,5]
[405765156,1771285847396,-250.0,0.00017899,5]
[405765157,1771285847405,-250.0,0.00017899,5]
[405765158,1771285847414,-678.14,0.00017899,2]
[405765159,1771285847423,-693.3919763,0.00017899,5]
[405765160,1771285847433,-719.04747942,0.00017899,5]
[405765161,1771285847442,-745.65223616,0.00017899,5]
[405765162,1771285847452,-773.2413689,0.00017899,5]
[405765163,1771285847461,-801.85129955,0.00017899,5]
[405765164,1771285847470,-831.51979763,0.00017899,5]
[405765165,1771285847479,-862.28603014,0.00017899,5]
[405765166,1771285847488,-894.19061326,0.00017899,5]
[405765167,1771285847498,-927.27566595,0.00017899,5]
[405765168,1771285847507,-961.58486559,0.00017899,5]
[405765169,1771285847516,-217.15233878,0.00017899,5]
[405765170,1771285847525,-997.16350561,0.00017899,5]
[405765171,1771285847534,-12715.56903199,0.000179,2]
[405765172,1771285847543,-3405.93802306,0.000179,2]
[405765173,1771285847552,-201.073241,0.00017908,2]
[405765174,1771285847561,-500.0,0.00017918,2]
[405765175,1771285847570,-500.0,0.00017918,2]
[405765176,1771285847579,-500.0,0.00017918,2]
[405765177,1771285847588,-500.0,0.00017918,2]
[405765178,1771285847598,-646.0,0.00017918,2]
[405765179,1771285847607,-500.0,0.00017973,2]
[405765180,1771285847616,-500.0,0.00017973,2]
[405765181,1771285847627,-573.45760824,0.00017973,2]
[405765182,1771285847636,-500.0,0.00017973,2]
[405765183,1771285847645,-500.0,0.00017973,2]
[405765184,1771285847654,-508.39564711,0.00017973,2]
[405765185,1771285847665,-500.0,0.00017973,2]
[405765186,1771285847674,-168.41663112,0.00017973,2]
[405765187,1771285847684,-502.91846702,0.00017973,2]
[405765188,1771285847695,-506.9381933,0.00017973,2]
[405765189,1771285847706,-500.0,0.00017973,2]
[405765190,1771285847715,-501.5878684,0.00017973,2]
[405765191,1771285847725,-500.0,0.00017973,2]
[405765192,1771285847734,-587.83312574,0.00017973,2]
[405765193,1771285847744,-501.38219524,0.00017973,2]
[405765194,1771285847753,-502.203053,0.00017973,2]
[405765195,1771285847762,-501.5340193,0.00017973,2]
[405765196,1771285847771,-500.0,0.00017973,2]
[405765197,1771285847780,-500.0,0.00017973,2]
[405765198,1771285847791,-500.0,0.00017973,2]
[405765199,1771285847800,-503.67384542,0.00017973,2]
[405765200,1771285847809,-501.52713661,0.00017973,2]
[405765201,1771285847819,-500.0,0.00017973,2]
[405765202,1771285847829,-500.0,0.00017973,2]
[405765203,1771285847838,-163.11049193,0.00017973,2]
[405765204,1771285847848,-166.66,0.00017979,2]
[405765205,1771285847857,-22999.999999,0.0001799,2]
[405765206,1771285847867,-5977.2327414,0.00017994,2]
[405765207,1771285847876,-3000.0,0.00017999,2]
[405765208,1771285847885,-300.0,0.00017999,2]
[405765209,1771285847894,-666.0,0.00017999,2]
[405765210,1771285847904,-300.0,0.00017999,2]
[405765211,1771285847913,-666.0,0.00017999,2]
[405765212,1771285847924,-300.0,0.00017999,2]
[405765213,1771285847933,-678.14,0.00017999,2]
[405765214,1771285847942,-678.14,0.00017999,2]
[405765215,1771285847952,-678.14,0.00017999,2]
[405765216,1771285847961,-678.14,0.00017999,2]
[405765217,1771285847970,-678.17880831,0.00017999,2]
[405765218,1771285847981,-1349.4,0.00017999,2]
[405765219,1771285847990,-1349.4,0.00017999,2]
[405765220,1771285848000,-1349.4,0.00017999,2]
[405765221,1771285848011,-1349.4,0.00017999,2]
[405765222,1771285848021,-1349.49343843,0.00017999,2]
[405765223,1771285848032,-23532.64461985,0.00017999,2]
[405765224,1771285848041,-10779001.96470154,0.00018,2]
[405765225,1771285849103,-370.08283952,8.658e-05,2]
[405765226,1771285849114,-316.60899946,8.793e-05,2]
[405765227,1771285849124,-1340.0,0.00010868,2]
[405765228,1771285849134,-844.0,0.00010923,2]
[405765229,1771285849144,-508.0,0.00010978,2]
[405765230,1771285849154,-500.0,0.00013698,2]
[405765231,1771285849164,-500.0,0.00013698,2]
[405765232,1771285849174,-500.0,0.00013698,2]
[405765233,1771285849183,-500.0,0.00013698,2]
[405765234,1771285849193,-500.0,0.00013698,2]
[405765235,1771285849203,-500.0,0.00013698,2]
[405765236,1771285849212,-500.0,0.00013698,2]
[405765237,1771285849222,-500.0,0.00013698,2]
[405765238,1771285849231,-504.11574809,0.00017973,2]
[405765239,1771285849240,-3400116.70658986,0.00018,2]
[405765240,1771285849250,-7513.62685196,0.00018,2]
[405765241,1771285849259,-70269.61185582,0.00018,2]
[405765242,1771285849268,-4995315.79323228,0.00018,2]
[405765243,1771285849280,-796.04788305,0.00018,2]
[405765244,1771285849362,-419.06798032,0.00013698,2]
[405765245,1771285849378,-80.93201968,0.00013698,2]
[405765246,1771285849387,-417.6360726,0.00018,2]
[405765247,1771285850153,-511.0,0.00010923,2]
[405765248,1771285851219,-370.0828395,8.676e-05,2]
[405765249,1771285851231,-829.0,0.00010923,2]
[405765250,1771285851241,-844.0,0.00010978,2]
[405765251,1771285851251,-1340.0,0.00010978,2]
[405765252,1771285851260,-508.0,0.00011032,2]
[405765253,1771285851269,-844.0,0.00011032,2]
[405765254,1771285851278,-1340.0,0.00011032,2]
[405765255,1771285851288,-527.39735904,0.00011087,2]
[405765256,1771285851297,-316.60899944,0.00013297,2]
[405765257,1771285851307,-500.0,0.00013698,2]
[405765258,1771285851316,-500.0,0.00013698,2]
[405765259,1771285851325,-517.93287247,0.00013698,2]
[405765260,1771285851335,-500.0,0.00013698,2]
[405765261,1771285851344,-500.0,0.00013698,2]
[405765262,1771285851354,-500.0,0.00013698,2]
[405765263,1771285851363,-500.0,0.00013698,2]
[405765264,1771285851373,-7147.09,0.00013699,2]
[405765265,1771285851383,-500.0,0.00015933,2]
[405765266,1771285851392,-500.0,0.00017999,2]
[405765267,1771285851402,-500.0,0.00017999,2]
[405765268,1771285851411,-602.54,0.00017999,2]
[405765269,1771285851421,-7717.16242467,0.00018,2]
[405765270,1771285879223,500.0,8.549e-05,2]
[405765271,1771285885360,4500.01,8.595e-05,2]
[405765272,1771285885388,5000.01,8.595e-05,2]
[405765273,1771285885413,5000.01,8.595e-05,2]
[405765274,1771285885436,5000.01,8.595e-05,2]
[405765275,1771285891704,-5000.01,8.595e-05,2]
[405765276,1771285891801,-5000.01,8.595e-05,2]
[405765277,1771285894574,-1654.1886,8.595e-05,2]
[405765278,1771285894601,-1691.6328,8.595e-05,2]
[405765279,1771285898942,5000.01,8.593e-05,2]
[405765280,1771285898968,5000.01,8.593e-05,2]
[405765281,1771285898993,5000.01,8.593e-05,2]
[405765282,1771285899024,10000.01,8.593e-05,2]
[405765283,1771285903686,-5000.01,8.593e-05,2]
[405765284,1771285903784,-5000.01,8.593e-05,2]
[405765285,1771285903900,-5000.01,8.593e-05,2]
[405765286,1771285906753,-5000.01,8.593e-05,2]
[405765287,1771285906913,-5000.01,8.593e-05,2]
[405765288,1771285907031,-5000.01,8.593e-05,2]
[405765289,1771285909884,-5000.01,8.593e-05,2]
[405765290,1771285910095,-5000.01,8.593e-05,2]
[405765291,1771285910214,-5000.01,8.593e-05,2]
[405765292,1771285912861,-5000.01,8.593e-05,2]
[405765293,1771285912966,-5000.01,8.593e-05,2]
[405765294,1771285913104,-5000.01,8.593e-05,2]
[405765295,1771285915974,-5000.01,8.593e-05,2]
[405765296,1771285916164,-5000.01,8.593e-05,2]
[405765297,1771285916247,-5000.01,8.593e-05,2]
[405765298,1771285918996,-5000.01,8.593e-05,2]
[405765299,1771285934598,-3358.663823,7.945e-05,2]
[405765300,1771285934628,-95641.336177,8.593e-05,2]
[405765301,1771286148437,150.0,0.00013199,120]
[405765302,1771286315648,150.0,0.00011177,7]